Cogmind - Beta 14 @@@ ROGUE MODE // 2024.12.11 @ 19:07:31 Player: Fangrelle Result: Destroyed by QG-I46(R) with Subdweller Laser Performance ------------- Evolutions (0) 0 Regions Visited (2) 400 Robots Destroyed (57) 285 Value Destroyed (1392) 1392 Prototype IDs (0) 0 Alien Tech Used (0) 0 Bonus (0) 0 TOTAL SCORE: 2077 Bonus ------- None Cogmind --------- Core Integrity 0/250 Matter 300/300 Energy 170/170 System Corruption 0% Temperature Cool (6) Movement Core (3550) Ox70 Location -10/Subcaves Parts ------- > --- POWER (1) -------- Makeshift Power Source > --- PROPULSION (2) --- Subdweller Monowheel > --- UTILITY (2) ------ Humpback > --- WEAPON (2) ------- Heavy Riot Gun Makeshift Hammer > --- INVENTORY (35) --- Subdweller Power Source Scrap Shield Scrap Shield Hacking Suite Heavy Battle Rifle Multitool Peak State ------------ > --- POWER ------------ Makeshift Power Source > --- PROPULSION ------- Spiked Treads > --- UTILITY ---------- Scrap Shield > --- WEAPON ----------- Heavy Riot Gun Makeshift Hammer > --- INVENTORY -------- Humpback Scrap Shield Hacking Suite [Rating: 18] Favorites ----------- Power Makeshift Power Source Engine Makeshift Power Source Propulsion Subdweller Monowheel Treads Light Treads Leg Aluminum Leg Wheel Subdweller Monowheel Utility Humpback Device Improved Terrain Scanner Storage Humpback Processor Targeting Computer Protection Scrap Shield Weapon Makeshift Hammer Energy Gun Heavy Riot Gun Ballistic Gun Shotgun Ballistic Cannon Battle Cannon Launcher EMP Blaster Impact Weapon Makeshift Hammer Build | -11 -10 -10 ------- Run | Yrd Mat Sub Slots Evolved . | . . . Power . | . . . Propulsion . | . . . Utility . | . . . Weapon . | . . . Parts Attached 33 | 2 11 20 Power 5 | . 2 3 Engine 5 | . 2 3 Core . | . . . Reactor . | . . . Propulsion 6 | 2 2 2 Treads 5 | 2 2 1 Leg . | . . . Wheel 1 | . . 1 Hover . | . . . Flight . | . . . Utility 7 | . 4 3 Device 1 | . 1 . Storage 3 | . 2 1 Processor 1 | . 1 . Hackware . | . . . Protection 2 | . . 2 Artifact . | . . . Weapon 15 | . 3 12 Energy Gun 3 | . 1 2 Energy Cannon . | . . . Ballistic Gun 8 | . 2 6 Ballistic Cannon 1 | . . 1 Launcher 2 | . . 2 Special Weapon . | . . . Impact Weapon 1 | . . 1 Slashing Weapon . | . . . Piercing Weapon . | . . . Special Melee Weapon . | . . . Unidentified Prototypes . | . . . Parts Lost 3 | . . 3 Power 1 | . . 1 Propulsion 2 | . . 2 Utility . | . . . Weapon . | . . . Highest Loss Streak 1 | . . 1 To Critical Strikes . | . . . Average Slot Usage (%) 78 | . 100 75 Engine 13 | . 14 13 Treads 10 | . 28 8 Wheel 7 | . . 8 Storage 10 | . 14 9 Processor 2 | . 12 1 Protection 3 | . . 4 Energy Gun 9 | . 4 9 Ballistic Gun 7 | . 23 4 Ballistic Cannon 2 | . . 2 Impact Weapon 8 | . . 10 Peak Build Rating 18 | 7 13 18 Average Rating 15 | 6 11 16 On Entrance 8 | 6 6 13 Naked Turns . | . . . Heaviest Build 211 | 10 91 211 Greatest Support 40 | 40 40 40 Greatest Overweight (x) 70 | . 2 70 Average Overweight (x) 6 | . 1 7 Largest Inventory Capacity 35 | 8 25 35 Average Capacity 24 | 8 20 25 Most Carried 25 | 8 25 25 Average Carried 9 | 6 17 8 Final Capacity 35 | 8 25 35 Final Carried 25 | 4 25 8 Class Distribution -------------------- 51% | Hauler-Mutant 33% | Mutant 14% | Derelict-Mutant Dominant Class ---------------- Mutant | -10/Materials Hauler-Mutant | -10/Subcaves Resources | -11 -10 -10 ----------- Run | Yrd Mat Sub Matter Collected 1390 | 243 504 643 Remotely . | . . . Salvage Created 1873 | 174 957 742 Parts 129 | 17 60 52 Haulers Intercepted 2 | . 2 . Recyclers Shooed 1 | . 1 . Parts Field Recycled . | . . . Retrieved Matter . | . . . Parts Self-Destructed 8 | . . 8 Prevented . | . . . Kills | -11 -10 -10 ------- Run | Yrd Mat Sub Combat Hostiles Destroyed 39 | . 19 20 Melee 1 | . . 1 Guns 32 | . 19 13 Cannons 1 | . . 1 AOE 4 | . . 4 Classes Destroyed 10 | 3 5 2 Worker 6 | 2 4 . Tunneler 2 | 2 . . Hauler 2 | . 2 . Recycler 2 | 1 1 . Operator 3 | . 3 . Watcher 3 | . 3 . Swarmer 8 | . 3 5 Grunt 16 | . 16 . Artisan 1 | . . 1 Subdweller 15 | . . 15 Best Kill Streak 4 | 3 4 3 Combat Bots Only 4 | . 4 3 Max Kills in Single Turn 3 | 1 2 3 Gunslinging 1 | . 1 . Exploded 3 | . . 3 Melee 1 | . . 1 Uniques/NPCs Destroyed . | . . . Combat | -11 -10 -10 -------- Run | Yrd Mat Sub Hostile Shots Fired 170 | . 65 105 Missed 49 | . 16 33 Damage Taken 2015 | . 559 1456 Core 267 | . 86 181 Absorbed by Shields . | . . . Core Remaining (%) 100 | 100 . . Volleys Fired 180 | 24 82 74 Largest 2 | 2 2 2 Hottest 88 | 60 85 88 Shots Fired 342 | 48 162 132 Gun 302 | 48 162 92 Cannon 29 | . . 29 Launcher 11 | . . 11 Special . | . . . Kinetic 250 | 24 130 96 Thermal 73 | 24 32 17 Explosive . | . . . Electromagnetic 19 | . . 19 Robot Hit Streak 24 | 5 12 24 Robot Miss Streak 5 | 3 5 4 Penetration Max . | . . . Secondary Targets 2 | . 1 1 Max Gunslinging Chain 1 | . 1 1 Shots Hit Robots 240 | 17 117 106 Core Hits 110 | 8 62 40 Critical Kills 2 | . 1 1 Critical Parts Destroyed . | . . . Critical Strikes 3 | . 1 2 Destroy 2 | . 1 1 Smash 1 | . . 1 Melee Attacks 27 | . . 27 Impact 27 | . . 27 Slashing . | . . . Piercing . | . . . Sneak Attacks 1 | . . 1 Combat Hostiles . | . . . Follow-up Attacks . | . . . Damage Inflicted 3593 | 127 1566 1900 Guns 2798 | 127 1566 1105 Cannons 434 | . . 434 Explosions 115 | . . 115 Melee 246 | . . 246 Ramming . | . . . Kinetic 2625 | 74 1294 1257 Thermal 455 | 53 272 130 Explosive . | . . . Electromagnetic 267 | . . 267 Impact 246 | . . 246 Slashing . | . . . Piercing . | . . . Highest Corruption . | . . . Average Corruption . | . . . Corruption Purged . | . . . Corruption Blocked . | . . . Overload Shots . | . . . Overflow Damage 66 | . . 66 Projectiles . | . . . Explosions . | . . . Melee 66 | . . 66 Knockbacks 4 | . . 4 Impact 2 | . . 2 Kinetic 2 | . . 2 Secondary . | . . . Self-Inflicted Damage 24 | . . 24 Shots 2 | . . 2 Rammed . | . . . Targets Rammed . | . . . Kicked . | . . . Crushed . | . . . Highest Temperature 296 | 60 112 296 Average Temperature 40 | 25 35 172 Received Heat Transfer 929 | . 339 590 Siege Activations . | . . . Robots Corrupted 2 | . . 2 Combat Hostiles 1 | . . 1 Parts Fried 3 | . . 3 Impact Corruptions 4 | . . 4 Robots Melted . | . . . Combat Hostiles . | . . . Parts Melted 2 | . 1 1 Heat Transferred 1079 | 125 658 296 Parts Sabotaged . | . . . Parts Stolen . | . . . Parts Stripped . | . . . Power Chain Reactions 2 | . . 2 Alert | -11 -10 -10 ------- Run | Yrd Mat Sub Peak Influence 211 | 25 211 . Initial 16 | . 16 . Average 115 | 11 123 . Maximum Alert Level 1 | . 1 . Low Security (%) 99 | 100 98 . Level 1 . | . 1 . Level 2 . | . . . Level 3 . | . . . Level 4 . | . . . Level 5 . | . . . High Security . | . . . Max Security . | . . . Squads Dispatched 6 | . 6 . Investigation 2 | . 2 . Extermination . | . . . Reinforcement 4 | . 4 . Assault . | . . . Garrison . | . . . Intercept . | . . . Searches Triggered . | . . . Construction Impeded . | . . . Haulers Reinforced . | . . . Active Scanning Responses . | . . . Cargo Convoy Interrupts . | . . . Stealth | -11 -10 -10 --------- Run | Yrd Mat Sub Distress Signals 3 | . 3 . Communications Jammed . | . . . Distress Signals . | . . . Times Spotted 52 | . 32 20 Peak Tracking Total 5 | . 5 3 Tactical Retreats 2 | . 1 1 Traps | -11 -10 -10 ------- Run | Yrd Mat Sub Traps Triggered 3 | . . 3 Indirectly . | . . . Trap Hack Attempts . | . . . Triggered . | . . . Disarmed . | . . . Reprogrammed . | . . . Reused 3 | . . 3 Traps Extracted . | . . . Installed 3 | . . 3 Triggered . | . . . Most Traps Carried 1 | . . 1 Machines | -11 -10 -10 ---------- Run | Yrd Mat Sub Machines Disabled 1 | . 1 . Max in Single Turn 1 | . 1 . Machines Repaired . | . . . Machines Dismantled . | . . . Machines Sabotaged . | . . . Overloaded Fab Kills . | . . . Hacking | -11 -10 -10 --------- Run | Yrd Mat Sub Machines Accessed 7 | . 6 1 Terminals 4 | . 4 . Fabricators . | . . . Repair Stations . | . . . Recycling Units 2 | . 2 . Scanalyzers . | . . . Garrison Access . | . . . Total Hacks 25 | . 20 5 Successful 14 | . 9 5 Failed 11 | . 11 . Catastrophic 2 | . 2 . Database Lockouts . | . . . Manual 12 | . 12 . Terminals 10 | . 10 . Fabricators . | . . . Repair Stations . | . . . Recycling Units 10 | . 10 . Scanalyzers . | . . . Garrison Access . | . . . Terminal Hacks 5 | . . 5 Record 5 | . . 5 Fabricator Hacks . | . . . Repair Station Hacks . | . . . Recycling Unit Hacks 2 | . 2 . Retrieve Components 2 | . 2 . Scanalyzer . | . . . Garrison Access Hacks . | . . . Unauthorized Hacks 7 | . 7 . Terminals 5 | . 5 . Assimilate 3 | . 3 . Botnet 2 | . 2 . Fabricators . | . . . Repair Stations . | . . . Recycling Units 2 | . 2 . Tunnel 2 | . 2 . Scanalyzers . | . . . Garrison Access . | . . . Data Cores Recovered . | . . . Used . | . . . Hacking Detections 6 | . 6 . Full Trace Events . | . . . Feedback Events . | . . . Feedback Blocked . | . . . Robot Schematics Acquired . | . . . Robots Built . | . . . Authchips . | . . . Time . | . . . Total Robot Build Rating . | . . . Part Schematics Acquired . | . . . Parts Built . | . . . Authchips . | . . . Time . | . . . Total Part Build Rating . | . . . Parts Repaired . | . . . Time . | . . . Parts Recycled . | . . . Recycled Matter . | . . . Retrieved Matter . | . . . Retrieved Components 19 | . 19 . Parts Scanalyzed . | . . . Part Schematics Acquired . | . . . Parts Damaged . | . . . Bothacking | -11 -10 -10 ------------ Run | Yrd Mat Sub Used RIF Installer . | . . . Robots Hacked . | . . . Non-combat . | . . . Combat . | . . . Robot Hacks Applied . | . . . Relay Couplers Released . | . . . Fabnet Peak Effective % . | . . . Robots Rewired . | . . . Allies Hacked . | . . . Hacks Repelled . | . . . Allies | -11 -10 -10 -------- Run | Yrd Mat Sub Total Allies . | . . . Largest Group . | . . . Highest-Rated Group . | . . . Highest-Rated Ally . | . . . Total Orders . | . . . Ally Attacks . | . . . Total Damage . | . . . Kills . | . . . Allies Corrupted . | . . . Allies Melted . | . . . Intel | -11 -10 -10 ------- Run | Yrd Mat Sub Robot Analysis Total . | . . . Derelict Logs Recovered 2 | . . 2 Drone Launches . | . . . Drone Recoveries . | . . . Exploration | -11 -10 -10 ------------- Run | Yrd Mat Sub Turns Passed 13848 | 146 1872 11830 Spaces Moved 2740 | 61 626 2053 Core 253 | . . 253 Treads 2359 | 2 626 1731 Legs 59 | 59 . . Wheels 69 | . . 69 Hover . | . . . Flight . | . . . Fastest Speed 120 | 120 160 120 Average Speed 477 | 121 253 556 Slowest Speed 3550 | 160 320 3550 Overloaded Moves . | . . . Propulsion Burnouts . | . . . Robots Hopped . | . . . Cave-ins Triggered . | . . . Exploration Rate (%) 62 | 6 89 93 Regions Visited 2 Branch Regions 1 Pre-discovered Areas 2 | . 2 . Known Exits Taken . | . . . Unknown Exits Taken 2 | 1 1 . Scrap Searched 6 | . . 6 Spaces Dug . | . . . Terrain Destroyed 10 | . . 10 Melee . | . . . Projectile 1 | . . 1 AOE 9 | . . 9 Terrain Rammed . | . . . Walls Destroyed . | . . . Machines Disabled . | . . . Actions | -11 -10 -10 --------- Run | Yrd Mat Sub Total 3185 | 92 760 2333 Wait 128 | . 14 114 Move 2738 | 60 625 2053 Hop . | . . . Pick Up 35 | 2 21 12 Fast Attach 11 | . 1 10 Attach 7 | 2 1 4 Detach 1 | . 1 . Swap 15 | . 9 6 Drop 33 | 4 6 23 Fire 180 | 24 82 74 Melee 27 | . . 27 Ram . | . . . Kick . | . . . Crush . | . . . Escape Stasis . | . . . Rewire . | . . . Trap 3 | . . 3 Miscellaneous 7 | . . 7 Route ------- -11/Scrapyard -10/Materials (discovered 4 exits: [*Mat x2] / [*Min] / *Sub) -10/Subcaves (discovered 2 exits: [*Mat x2]) History --------- Turn | Location | Event 1 | -11/Scrapyard | Discovered new exit (range 1) 147 | -11/Scrapyard | Entered Materials 311 | -10/Materials | Build established: Mutant 1048 | -10/Materials | Discovered new exit (range 15) 1084 | -10/Materials | Discovered new exit (range 16) 1508 | -10/Materials | Discovered new exit (range 5) 1993 | -10/Materials | Discovered new exit (range 5) 2019 | -10/Materials | Entered Subcaves 2124 | -10/Subcaves | Core integrity fell below 50% 3116 | -10/Subcaves | Core integrity fell below 20% 3322 | -10/Subcaves | Discovered new exit (range 13) 3679 | -10/Subcaves | Shifting Twisted Machinery released Sub. Monowheel 3685 | -10/Subcaves | Shifting Twisted Machinery released Sub. Machine Gun 4052 | -10/Subcaves | A swath of the cavern ceiling suddenly collapsed 4341 | -10/Subcaves | Disturbed a concealed Subdweller 4383 | -10/Subcaves | Disturbed a concealed Subdweller 4655 | -10/Subcaves | Build established: Derelict-Mutant 5149 | -10/Subcaves | Shifting Twisted Machinery released Humpback 5322 | -10/Subcaves | Discovered new exit (range 3) 5323 | -10/Subcaves | Shifting Twisted Machinery released Mak. Hammer 5562 | -10/Subcaves | A swath of the cavern ceiling suddenly collapsed 5648 | -10/Subcaves | Shifting Twisted Machinery released Shrapnel Trap 5840 | -10/Subcaves | Shifting Twisted Machinery released Hvy. Riot Gun 5980 | -10/Subcaves | Visited Clippyterm 5988 | -10/Subcaves | Learned Factory fabricator intel 5988 | -10/Subcaves | Learned Factory garrison access intel 6292 | -10/Subcaves | Learned Materials terminal intel 6627 | -10/Subcaves | Build established: Mutant 6982 | -10/Subcaves | Build established: Hauler-Mutant 13849 | -10/Subcaves | Destroyed by QG-I46(R) with Subdweller Laser Last Messages --------------- 06715_ Acquired 10 matter. 06963_ Acquired Sub. Power Source. 06972_ Sub. Monowheel fried. 06972_ Sub. Power Source fried. 06972_ MZ-ZKX(R) destroyed. 07684_ Acquired Multitool. 12538_ MY-1ON(u) tweaks Twisted Machinery. 12551_ Sneak attack on MY-1ON(u). 12551_ Destroyed Wheel. 12551_ Destroyed Multitool. 12551_ MY-1ON(u) system corrupted by crushing effect. 12551_ MY-1ON(u) knocked back. 12552_ MY-1ON(u) system terminally corrupted. 12552_ MY-1ON(u) cries out in pain. 12612_ W4-GQN(R): "LEAVESUB!" 12630_ Destroyed Sub. Optics. 12630_ W4-GQN(R) system corrupted by crushing effect. 12631_ W4-GQN(R) system terminally corrupted. 12631_ Sub. Laser fried. 13845_ QG-I46(R): "FREEEEDUMB!" Map ----- +----------------------------------------------------+ | ####"#?????# # ## ######## ### | | ##"##?????## " # #??# | | # ""#??????# " # #???# ###[# | | ###"####???# #"" #?###### #?## | | ??##"""##??## """ ### #?## #??# | | #??##"# #?## """"" ### ######= | | #?####"##?#" # """ #### " | | ####""# ##### """ ## ##?# ! | | #"#"""##" ""### " ### ##?## | | "#""#####!%#"#" ####?# ### ##??# | | #########" """ ####### ##?####???### | | "#?##"""""" ### ## ## ############# | | ##?# """""## ## ## ### ## ## | | #### " ####### ####?### | | #?## # #???## ## #????### # | | #??# #??## ##?####??# ## ### ## | | #?# #??# ### #??## ####### ### | | ##?# ###??# #????# ## #### ##?# | | ##??## ##????## ##????# ##?###??# | | ##????##???????# ##?????## #??????# | | ???????????????# ####??????## #??###?? | | ???????????????# #?######## # ##?? ##? | | ##?????????????## ### # #?? ## | | "##????????????## ## ### # | | "#????????????# ## # ## ## | | %&"#???????????#### ###@ ^^##?##### | | "#??????????????# ##?# ;####### | | %"#?????????????## ###; ;## # | | "#?????????????# ##;;& ! ### ### ## | | #?????????????# ## R !% ; ##???#? | | ""#?????????????#####%! ;; #?????? | | "##???????????????## #### #?????? | | ###???????????????##" ##??### # #### ##?????? | | ##?????????????#### ##?????##########???##??????? | | ########??????# # ^##???????????????????????????? | | # #???????# #???????????????????????????? | | ### #???####### #???????????????????????????? | | ## ##??## ### #???????????????????????????? | | # ##### ## ##???????????????????????????? | | # ## #???????????????????????????? | | #### ##???????????????????????????? | | % #?## ##??????????????????????????? | | ### #??????????????????????????? | | # ### #??????????????????????????? | | # #### #????????????????????????? | | # ##?# ## #????????????????????????? | | #######?## # ## ##????????????????????????? | | ????????# ## #####???????????????????????? | | ???# #### ## ### #???????????????????????? | | ??# ###### #???????????#######?????? | +----------------------------------------------------+ Best States ------------- Heat Dissipation 25 Energy Generation 15 Energy Capacity 250 Matter Stores 300 Matter Capacity 300 Sight Range 16 Terrain Scan Range 16 Terrain Scan Density 10 Armor Coverage 800 Evasion (%) 55 Targeting Accuracy 5 Recoil Reduction 2 Item Schematics ----------------- None Robot Schematics ------------------ None Fabricated ------------ Nothing Alien Tech Used ----------------- None Achievements -------------- None Challenges ------------ None Game ------ Seed ColdMyomerDetonator Manual? 0 Play Time 00:26:04 Cumulative 156.6 hours Start 2024.12.11 @ 18:42:33 End 2024.12.11 @ 19:07:31 Sessions 1 Manual Loads 0 Difficulty Rogue Special Mode None Game No. 298 Rogue 298 Adventurer 0 Explorer 0 Win Type - Total 0 Types 0/0/0/0/0/0/0/0/0 Lore% 46 Gallery% 42 Achievement% 36 Wizard Run 0 Options --------- Layout 0 ASCII 0 Keyboard 0 Movement Mouse Keybinds 0 Fullscreen 1 Font 24/Smallcaps Map View 91x25 Zoom Use 94% Tactical HUD 1 Map Filters NONE Filters NONE Steam 1 RUN: f16e3f42-65be-40bf-99e7-aa5a5f3c4d7a